fUST/lending_fUST_20260316
["ID","MTS","AMOUNT","RATE_DAILY","PERIOD"]
[408441166,1773633039640,-500.0,9.796e-05,2]
[408441167,1773633039649,-500.0,9.796e-05,2]
[408441168,1773633039658,-500.0,9.796e-05,2]
[408441169,1773633039667,-500.0,9.796e-05,2]
[408441170,1773633039676,-500.0,9.796e-05,2]
[408441171,1773633039685,-450.0,9.796e-05,2]
[408441172,1773633039694,-500.0,9.796e-05,2]
[408441173,1773633039704,-500.0,9.796e-05,2]
[408441174,1773633039713,-500.0,9.796e-05,2]
[408441175,1773633039722,-500.0,9.796e-05,2]
[408441176,1773633039731,-500.0,9.796e-05,2]
[408441177,1773633039740,-232.825,9.796e-05,2]
[408441178,1773633039749,-185.9071666,9.796e-05,2]
[408441179,1773633039759,-266084.58370284,9.797e-05,2]
[408441180,1773633039768,-2030.296672,9.846e-05,2]
[408441181,1773633039777,-3357.1146451,9.846e-05,2]
[408441182,1773633039786,-461.72404363,9.886e-05,2]
[408441183,1773633039796,-1983.4025286,9.892e-05,2]
[408441184,1773633039805,-6852.213955,9.892e-05,2]
[408441185,1773633039814,-1983.4025286,9.892e-05,2]
[408441186,1773633039824,-5527.8559312,9.892e-05,2]
[408441187,1773633039833,-4324.8565402,9.892e-05,2]
[408441188,1773633039842,-210.40876251,9.898e-05,2]
[408441189,1773633039851,-2105.41764886,9.901e-05,2]
[408441190,1773633039860,-2183.31810187,9.956e-05,2]
[408441191,1773633039869,-420.0,0.0001,2]
[408441192,1773633039878,-1068.0,0.0001,2]
[408441193,1773633039888,-2264.10087164,0.00010011,2]
[408441194,1773633039897,-2347.87260389,0.00010066,2]
[408441195,1773633039906,-2434.74389024,0.00010121,2]
[408441196,1773633039915,-2524.82941417,0.00010176,2]
[408441197,1773633039925,-4823.6348421,0.00010182,2]
[408441198,1773633039934,-2618.2481025,0.00010231,2]
[408441199,1773633039943,-2715.12328229,0.00010286,2]
[408441200,1773633039954,-1000.0,0.00010321,2]
[408441201,1773633039964,-1000.0,0.00010321,2]
[408441203,1773633039973,-461.72404362,0.00010328,2]
[408441205,1773633039983,-473.22547703,0.00010339,2]
[408441207,1773633039992,-557.5788265,0.00010339,2]
[408441208,1773633040001,-2230.315306,0.00010339,2]
[408441209,1773633040010,-2815.58284374,0.00010341,2]
[408441210,1773633040019,-1037.0137292,0.00010383,2]
[408441211,1773633040029,-2927.14142891,0.00010396,2]
[408441212,1773633040038,-266.91845996,0.00010672,5]
[408441213,1773633040048,-350.37537693,0.000108,2]
[408441214,1773633040057,-1500.0,0.00010868,2]
[408441215,1773633040066,-1500.0,0.00010868,2]
[408441216,1773633040077,-461.72404362,0.00010871,2]
[408441217,1773633040087,-2312.83697232,0.00010887,2]
[408441218,1773633040096,-600.0,0.00010907,2]
[408441219,1773633040106,-587.0,0.00011,2]
[408441220,1773633040115,-1528.9355971,0.00011148,2]
[408441221,1773633040126,-1233.4313792,0.00011171,2]
[408441222,1773633040135,-965.0059324,0.00011171,2]
[408441223,1773633040144,-202.57204551,0.00011187,2]
[408441224,1773633040154,-461.72404362,0.00011413,2]
[408441225,1773633040164,-2000.0,0.00011416,2]
[408441226,1773633040173,-2000.0,0.00011416,2]
[408441227,1773633040182,-341.1516446,0.00011428,2]
[408441229,1773633040191,-2398.4119403,0.00011435,2]
[408441231,1773633040200,-275.2157411,0.00011456,2]
[408441233,1773633040209,-215.3219282,0.00011456,2]
[408441235,1773633040219,-159.82570678,0.000115,2]
[408441237,1773633040228,-461.72404362,0.00011955,2]
[408441239,1773633040237,-2500.0,0.00011964,2]
[408441241,1773633040246,-2500.0,0.00011964,2]
[408441243,1773633040256,-2487.15318209,0.00011983,2]
[408441245,1773633040264,-720.0,0.00011998,2]
[408441247,1773633040274,-5755.4434,0.00011999,2]
[408441249,1773633040284,-274.8747952,0.00012055,2]
[408441251,1773633040293,-574.0,0.000121,2]
[408441254,1773633040302,-2955.3293457,0.00012164,2]
[408441256,1773633040312,-734.0,0.00012313,2]
[408441257,1773633040321,-183.0,0.00012313,2]
[408441258,1773633040331,-3000.0,0.00012512,2]
[408441259,1773633040340,-3000.0,0.00012512,2]
[408441261,1773633040350,-342.30696137,0.00012531,2]
[408441262,1773633040360,-5000.0,0.000126,7]
[408441263,1773633040370,-5604.57225117,0.00012773,2]
[408441264,1773633040381,-1403.0,0.000129,2]
[408441265,1773633040390,-197.39670293,0.00013046,2]
[408441266,1773633040402,-503.86953664,0.0001306,2]
[408441267,1773633040411,-500.69574541,0.0001306,2]
[408441268,1773633040425,-864.0,0.00013198,2]
[408441269,1773633040434,-454.8628339,0.00013365,2]
[408441270,1773633040443,-5137.51462913,0.00013697,2]
[408441271,1773633040452,-5137.51462913,0.00013697,2]
[408441272,1773633040461,-5137.51462913,0.00013697,2]
[408441273,1773633040470,-5137.51462913,0.00013697,2]
[408441274,1773633040479,-5137.51462913,0.00013697,2]
[408441275,1773633040488,-5137.51462913,0.00013697,2]
[408441276,1773633040498,-5137.51462912,0.00013697,2]
[408441277,1773633040507,-5137.51462912,0.00013697,2]
[408441278,1773633040516,-5137.51462912,0.00013697,2]
[408441279,1773633040525,-5137.51462912,0.00013697,2]
[408441280,1773633040534,-5137.51462912,0.00013697,2]
[408441281,1773633040543,-5137.51462912,0.00013697,2]
[408441282,1773633040552,-5137.51462912,0.00013697,2]
[408441283,1773633040561,-5137.51462912,0.00013697,2]
[408441284,1773633040570,-5137.51462912,0.00013697,2]
[408441285,1773633040579,-5137.51462912,0.00013697,2]
[408441286,1773633040588,-5137.51462912,0.00013697,2]
[408441287,1773633040597,-5137.51462912,0.00013697,2]
[408441288,1773633040817,-5137.51462912,0.00013697,2]
[408441289,1773633040826,-5137.51462912,0.00013697,2]
[408441290,1773633040835,-901.75,0.00013697,2]
[408441291,1773633040844,-901.75,0.00013697,2]
[408441292,1773633040853,-901.75,0.00013697,2]
[408441293,1773633040863,-901.75,0.00013697,2]
[408441294,1773633040871,-901.75,0.00013697,2]
[408441295,1773633040880,-901.75,0.00013697,2]
[408441296,1773633040889,-901.75,0.00013697,2]
[408441297,1773633040898,-901.75,0.00013697,2]
[408441298,1773633040907,-901.75,0.00013697,2]
[408441299,1773633040915,-901.75,0.00013697,2]
[408441300,1773633040925,-901.75,0.00013697,2]
[408441301,1773633040933,-901.75,0.00013697,2]
[408441302,1773633040943,-901.75,0.00013697,2]
[408441303,1773633040952,-901.75,0.00013697,2]
[408441304,1773633040961,-901.75,0.00013697,2]
[408441305,1773633040971,-901.75,0.00013697,2]
[408441306,1773633040980,-901.75,0.00013697,2]
[408441307,1773633040990,-901.75,0.00013697,2]
[408441308,1773633040999,-901.75,0.00013697,2]
[408441309,1773633041009,-1107.44,0.00013697,2]
[408441310,1773633041018,-500.0,0.00013698,2]
[408441311,1773633041027,-641.50928633,0.00013698,2]
[408441312,1773633041037,-500.0,0.00013698,2]
[408441313,1773633041046,-500.0,0.00013698,2]
[408441314,1773633041055,-500.0,0.00013698,2]
[408441315,1773633041065,-500.0,0.00013698,2]
[408441316,1773633041075,-500.0,0.00013698,2]
[408441317,1773633041088,-500.0,0.00013698,2]
[408441318,1773633041097,-500.0,0.00013698,2]
[408441319,1773633041106,-280.84566871,0.00013698,2]
[408441320,1773633041115,-242.87286283,0.00013698,2]
[408441321,1773633041126,-500.0,0.00013698,2]
[408441322,1773633041135,-500.0,0.00013698,2]
[408441323,1773633041145,-514.97975222,0.00013698,2]
[408441324,1773633041155,-155.2150556,0.00013698,2]
[408441325,1773633041164,-250.62119147,0.00013698,2]
[408441326,1773633041174,-164.88445638,0.00013698,2]
[408441327,1773633041183,-156.61524999,0.00013698,2]
[408441328,1773633041192,-524.10427361,0.00013698,2]
[408441329,1773633041202,-238.4908883,0.00013698,2]
[408441330,1773633041211,-279.57289715,0.00013698,2]
[408441331,1773633041221,-193.11902171,0.00013698,2]
[408441332,1773633041230,-369.09395232,0.00013698,2]
[408441333,1773633041240,-182.30625251,0.00013698,2]
[408441334,1773633041249,-151.69670953,0.00013698,2]
[408441335,1773633041259,-155.68920193,0.00013698,2]
[408441336,1773633041268,-284.85583289,0.00013698,2]
[408441337,1773633041278,-261.207734,0.00013698,2]
[408441338,1773633041287,-252.00338578,0.00013698,2]
[408441339,1773633041297,-190.21832797,0.00013698,2]
[408441340,1773633041306,-302.71749731,0.00013698,2]
[408441341,1773633041316,-500.00085168,0.00013698,2]
[408441342,1773633041326,-190.20757718,0.00013698,2]
[408441343,1773633041335,-185.87901411,0.00013698,2]
[408441344,1773633041345,-183.7407934,0.00013698,2]
[408441345,1773633041354,-500.0,0.00013698,2]
[408441346,1773633041364,-500.0,0.00013698,2]
[408441347,1773633041373,-500.0,0.00013698,2]
[408441348,1773633041383,-500.0,0.00013698,2]
[408441349,1773633041393,-500.0,0.00013698,2]
[408441350,1773633041402,-500.0,0.00013698,2]
[408441351,1773633041412,-510.49876395,0.00013698,2]
[408441352,1773633041422,-500.0,0.00013698,2]
[408441353,1773633041431,-500.0,0.00013698,2]
[408441354,1773633041440,-500.0,0.00013698,2]
[408441355,1773633041450,-154.15741501,0.00013698,2]
[408441356,1773633041460,-156.0,0.00013699,2]
[408441357,1773633041469,-748.989774,0.00013699,2]
[408441358,1773633041478,-1000.0,0.00013699,2]
[408441359,1773633041487,-2000.0,0.00013699,7]
[408441360,1773633041496,-1000.0,0.00013699,2]
[408441361,1773633041506,-503.21027809,0.00013699,2]
[408441362,1773633041515,-160.0,0.0001372,7]
[408441363,1773633041525,-646.091214,0.0001372,7]
[408441364,1773633041534,-1132.182428,0.0001372,7]
[408441365,1773633041542,-351.795588,0.0001372,7]
[408441366,1773633041552,-1377.9,0.000139,2]
[408441367,1773633041561,-150.19810606,0.00013973,2]
[408441368,1773633041570,-164873.71258878,0.00014,7]
[408441369,1773633041579,-151.0,0.00014,2]
[408441370,1773633041589,-6092.13217944,0.00014068,2]
[408441371,1773633041598,-454.8646277,0.00014227,2]
[408441372,1773633041607,-454.8538594,0.00014227,2]
[408441373,1773633041616,-242.0,0.00014247,3]
[408441374,1773633041625,-1000.0,0.00014518,2]
[408441375,1773633041635,-2000.0,0.00014749,7]
[408441376,1773633041644,-1377.9,0.000149,2]
[408441377,1773633041653,-509853.00662924,0.00014969,5]
[408441378,1773633041979,-5526.81915222,0.00014969,5]
[408441379,1773633042015,-20282.2182383,0.00014969,5]
[408441383,1773633046085,-515.17865135,0.00014969,5]
[408441384,1773633046095,-2837.59133582,0.00015,2]
[408441385,1773633046107,-6265.40866418,0.00015,2]
[408441386,1773633046116,-2447.0,0.00015,2]
[408441387,1773633046126,-389.0,0.00015,2]
[408441388,1773633046135,-270.83333333,0.00015,2]
[408441390,1773633046145,-700.0,0.00015,2]
[408441392,1773633046156,-504.20112336,0.00015,2]
[408441394,1773633046166,-506.84343284,0.00015,2]
[408441396,1773633046175,-500.0,0.00015,2]
[408441397,1773633046184,-500.0,0.00015,2]
[408441399,1773633046193,-500.0,0.00015,2]
[408441400,1773633046203,-500.0,0.00015,2]
[408441401,1773633046212,-364.26505223,0.00015015,2]
[408441402,1773633046221,-160.0,0.00015056,7]
[408441403,1773633046230,-347.884422,0.00015056,7]
[408441404,1773633046240,-535.768844,0.00015056,7]
[408441406,1773633046250,-170.730575,0.00015068,2]
[408441408,1773633046259,-158.0,0.000151,3]
[408441410,1773633046268,-324.6986924,0.00015285,2]
[408441412,1773633046278,-183.0,0.00015313,2]
[408441414,1773633046287,-3490.98932396,0.00015363,3]
[408441438,1773633046812,-8398.0,0.00015285,2]
[408441439,1773633046821,-2278.0,0.00015285,2]
[408441440,1773633046830,-774.0,0.00015285,2]
[408441441,1773633046839,-301.64103945,0.00015363,3]
[408441442,1773633046850,-2592.87929683,0.00015363,3]
[408441443,1773633046859,-5000.0,0.0001564,2]
[408441444,1773633046868,-1055.386765,0.00015778,7]
[408441445,1773633046878,-2000.0,0.00015799,7]
[408441446,1773633046887,-186.0,0.0001589,3]
[408441447,1773633046896,-816.06839997,0.000159,2]
[408441448,1773633046907,-561.83160003,0.000159,2]
[408441450,1773633046916,-1000.0,0.00015969,2]
[408441452,1773633046925,-244.0,0.00015969,2]
[408441454,1773633046934,-270.83333333,0.00016006,3]
[408441456,1773633046944,-6232.78845237,0.00016006,3]
[408441457,1773633046955,-4895.9349,0.00016006,3]
[408441458,1773633046967,-26871.27664763,0.00016006,3]
[408441459,1773633046976,-38000.0,0.00016006,3]
[408441460,1773633046985,-12037.95848631,0.00016006,3]
[408441461,1773633046996,-12025.63482159,0.00016006,3]
[408441462,1773633047005,-3000.0,0.00016006,2]
[408441463,1773633047014,-3000.0,0.00016006,2]
[408441464,1773633047023,-3000.0,0.00016006,2]
[408441465,1773633047033,-1853.313402,0.00016006,2]
[408441466,1773633047042,-158.0,0.000161,4]
[408441467,1773633047051,-176.14836687,0.0001626,5]
[408441468,1773633047060,-151.0,0.000164,2]
[408441469,1773633047069,-151.0,0.00016438,2]
[408441470,1773633047083,-1615.228035,0.00016464,7]
[408441471,1773633047092,-270.83333333,0.000165,3]
[408441472,1773633047101,-250.0,0.00016648,2]
[408441473,1773633047110,-151.57429824,0.00016657,2]
[408441474,1773633047125,-7166.44706931,0.00016659,3]
[408441475,1773633047134,-2000.0,0.00016849,7]
[408441477,1773633047144,-1377.9,0.000169,2]
[408441478,1773633047156,-353.932265,0.00016968,7]
[408441480,1773633047164,-270.83333333,0.00017,7]
[408441481,1773633047174,-151.0,0.00017,2]
[408441482,1773633047182,-270.83333333,0.00017,3]
[408441483,1773633047191,-151.0,0.00017,2]
[408441484,1773633047200,-196.1323308,0.0001705,2]
[408441485,1773633047210,-350.0,0.00017196,2]
[408441486,1773633047219,-188.0,0.00017534,3]
[408441487,1773633047228,-1000.0,0.00017566,2]
[408441488,1773633047237,-492.0,0.00017566,2]
[408441489,1773633047252,-5000.0,0.000176,7]
[408441490,1773633047262,-750109.82972646,0.0001763,2]
[408441491,1773633047281,-163.778,0.00017649,2]
[408441492,1773633047290,-11879.68940355,0.00017708,2]
[408441493,1773633047299,-450.0,0.00017744,2]
[408441494,1773633047308,-151.0,0.00017808,2]
[408441495,1773633047325,-151.0,0.00017808,2]
[408441496,1773633047336,-151.0,0.00017808,2]
[408441497,1773633047346,-151.0,0.00017808,2]
[408441498,1773633047356,-151.0,0.00017808,2]
[408441499,1773633047365,-151.0,0.00017808,2]
[408441500,1773633047374,-151.0,0.00017808,2]
[408441501,1773633047383,-151.0,0.00017808,2]
[408441502,1773633047393,-151.0,0.00017808,2]
[408441503,1773633047403,-151.0,0.00017808,2]
[408441504,1773633047412,-151.0,0.00017808,2]
[408441505,1773633047420,-151.0,0.00017808,2]
[408441506,1773633047430,-151.0,0.00017808,2]
[408441507,1773633047439,-151.0,0.00017808,2]
[408441508,1773633047448,-297.923717,0.00017808,2]
[408441509,1773633047457,-151.0,0.00017808,2]
[408441510,1773633047466,-169.697075,0.00017808,2]
[408441511,1773633047475,-337.449878,0.00017808,2]
[408441512,1773633047485,-337.449878,0.00017808,2]
[408441513,1773633047494,-337.449878,0.00017808,2]
[408441514,1773633047504,-337.449878,0.00017808,2]
[408441515,1773633047513,-337.449878,0.00017808,2]
[408441516,1773633047524,-337.449878,0.00017808,2]
[408441517,1773633047533,-337.449878,0.00017808,2]
[408441518,1773633047542,-337.449878,0.00017808,2]
[408441519,1773633047552,-337.449878,0.00017808,2]
[408441520,1773633047560,-337.449878,0.00017808,2]
[408441521,1773633047569,-337.449878,0.00017808,2]
[408441522,1773633047578,-337.449878,0.00017808,2]
[408441523,1773633047588,-337.449878,0.00017808,2]
[408441524,1773633047597,-337.449878,0.00017808,2]
[408441525,1773633047606,-337.449878,0.00017808,2]
[408441526,1773633047616,-337.449878,0.00017808,2]
[408441527,1773633047634,-337.449878,0.00017808,2]
[408441528,1773633047654,-337.449878,0.00017808,2]
[408441529,1773633047673,-337.449878,0.00017808,2]
[408441530,1773633047682,-337.44987484,0.00017808,2]
[408441531,1773633047693,-403.63646,0.00017808,2]
[408441532,1773633047702,-403.63646,0.00017808,2]
[408441533,1773633047712,-403.63646,0.00017808,2]
[408441534,1773633047721,-403.63646,0.00017808,2]
[408441535,1773633047731,-403.63646,0.00017808,2]
[408441536,1773633047742,-403.63646,0.00017808,2]
[408441537,1773633047752,-403.63646,0.00017808,2]
[408441538,1773633047762,-403.63646,0.00017808,2]
[408441539,1773633047772,-403.63646,0.00017808,2]
[408441540,1773633047781,-403.63646,0.00017808,2]
[408441541,1773633047790,-403.63646,0.00017808,2]
[408441542,1773633047800,-403.63646,0.00017808,2]
[408441543,1773633047809,-403.63646,0.00017808,2]
[408441544,1773633047819,-403.63646,0.00017808,2]
[408441545,1773633047828,-403.63646,0.00017808,2]
[408441546,1773633047838,-403.63646,0.00017808,2]
[408441547,1773633047847,-403.63646,0.00017808,2]
[408441548,1773633047856,-403.63646,0.00017808,2]
[408441549,1773633047865,-403.63646,0.00017808,2]
[408441550,1773633047874,-403.636451,0.00017808,2]
[408441551,1773633047884,-151.0,0.00017808,2]
[408441552,1773633047893,-151.0,0.00017808,2]
[408441553,1773633047902,-151.0,0.00017808,2]
[408441554,1773633047911,-151.0,0.00017808,2]
[408441555,1773633047920,-151.0,0.00017808,2]
[408441556,1773633048210,-151.0,0.00017808,2]
[408441557,1773633048228,-151.0,0.00017808,2]
[408441558,1773633048238,-151.0,0.00017808,2]
[408441559,1773633048247,-156.09595,0.00017808,2]
[408441560,1773633048257,-151.0,0.00017808,2]
[408441561,1773633048266,-165.038691,0.00017808,2]
[408441562,1773633048275,-151.0,0.00017808,2]
[408441563,1773633048284,-151.0,0.00017808,2]
[408441564,1773633048294,-151.0,0.00017808,2]
[408441565,1773633048303,-151.0,0.00017808,2]
[408441566,1773633048312,-151.0,0.00017808,2]
[408441567,1773633048322,-151.0,0.00017808,2]
[408441568,1773633048331,-151.0,0.00017808,2]
[408441569,1773633048341,-151.0,0.00017808,2]
[408441570,1773633048351,-151.0,0.00017808,2]
[408441571,1773633048363,-151.0,0.00017808,2]
[408441572,1773633048379,-151.0,0.00017808,2]
[408441573,1773633048388,-151.0,0.00017808,2]
[408441574,1773633048397,-151.0,0.00017808,2]
[408441575,1773633048406,-151.0,0.00017808,2]
[408441576,1773633048416,-151.0,0.00017808,2]
[408441577,1773633048426,-151.0,0.00017808,2]
[408441578,1773633048437,-151.0,0.00017808,2]
[408441579,1773633048446,-298.031818,0.00017808,2]
[408441580,1773633048457,-151.0,0.00017808,2]
[408441581,1773633048467,-151.0,0.00017808,2]
[408441582,1773633048476,-151.0,0.00017808,2]
[408441583,1773633048486,-257.441195,0.00017808,2]
[408441584,1773633048495,-195.60139,0.00017808,2]
[408441585,1773633048504,-195.60139,0.00017808,2]
[408441586,1773633048513,-195.60139,0.00017808,2]
[408441587,1773633048522,-195.60139,0.00017808,2]
[408441588,1773633048531,-195.60139,0.00017808,2]
[408441589,1773633048540,-195.60139,0.00017808,2]
[408441590,1773633048550,-195.60139,0.00017808,2]
[408441591,1773633048559,-195.60139,0.00017808,2]
[408441592,1773633048570,-195.60139,0.00017808,2]
[408441593,1773633048579,-195.60139,0.00017808,2]
[408441594,1773633048588,-195.60139,0.00017808,2]
[408441595,1773633048597,-195.60139,0.00017808,2]
[408441596,1773633048606,-195.60139,0.00017808,2]
[408441597,1773633048615,-195.60139,0.00017808,2]
[408441598,1773633048624,-195.60139,0.00017808,2]
[408441599,1773633048633,-195.60139,0.00017808,2]
[408441600,1773633048642,-195.60139,0.00017808,2]
[408441601,1773633048651,-195.60139,0.00017808,2]
[408441602,1773633048660,-195.60139,0.00017808,2]
[408441603,1773633048669,-195.601398,0.00017808,2]
[408441604,1773633048678,-151.0,0.00017808,2]
[408441605,1773633048687,-151.0,0.00017808,2]
[408441606,1773633048696,-151.0,0.00017808,2]
[408441607,1773633048706,-151.0,0.00017808,2]
[408441608,1773633048715,-151.0,0.00017808,2]
[408441609,1773633048724,-245.743194,0.00017808,2]
[408441610,1773633048734,-151.0,0.00017808,2]
[408441611,1773633048743,-151.0,0.00017808,2]
[408441612,1773633048752,-151.0,0.00017808,2]
[408441613,1773633048761,-151.0,0.00017808,2]
[408441614,1773633048769,-151.0,0.00017808,2]
[408441615,1773633048779,-151.0,0.00017808,2]
[408441616,1773633048792,-151.0,0.00017808,2]
[408441617,1773633048801,-151.0,0.00017808,2]
[408441618,1773633048810,-151.0,0.00017808,2]
[408441619,1773633048819,-151.0,0.00017808,2]
[408441620,1773633048828,-151.0,0.00017808,2]
[408441621,1773633048837,-151.0,0.00017808,2]
[408441622,1773633048846,-151.0,0.00017808,2]
[408441623,1773633048855,-151.0,0.00017808,2]
[408441624,1773633048865,-151.0,0.00017808,2]
[408441625,1773633048875,-151.0,0.00017808,2]
[408441626,1773633048885,-151.0,0.00017808,2]
[408441627,1773633048895,-252.740098,0.00017808,2]
[408441628,1773633048904,-195.234564,0.00017808,2]
[408441629,1773633048913,-195.234564,0.00017808,2]
[408441630,1773633048922,-195.234564,0.00017808,2]
[408441631,1773633048931,-195.234564,0.00017808,2]
[408441632,1773633048940,-195.234564,0.00017808,2]
[408441633,1773633048950,-151.0,0.00017808,2]
[408441634,1773633048960,-195.234564,0.00017808,2]
[408441635,1773633048969,-181.811787,0.00017808,2]
[408441636,1773633048978,-195.234564,0.00017808,2]
[408441637,1773633048987,-195.234564,0.00017808,2]
[408441638,1773633048997,-195.234564,0.00017808,2]
[408441639,1773633049007,-195.234564,0.00017808,2]
[408441640,1773633049016,-195.234564,0.00017808,2]
[408441641,1773633049025,-195.234564,0.00017808,2]
[408441642,1773633049034,-195.234564,0.00017808,2]
[408441643,1773633049043,-195.234564,0.00017808,2]
[408441644,1773633049053,-195.234564,0.00017808,2]
[408441645,1773633049062,-195.234564,0.00017808,2]
[408441646,1773633049071,-195.234564,0.00017808,2]
[408441647,1773633049081,-195.234564,0.00017808,2]
[408441648,1773633049094,-195.234564,0.00017808,2]
[408441649,1773633049104,-195.234565,0.00017808,2]
[408441650,1773633049113,-483.87433,0.00017808,2]
[408441651,1773633049125,-483.87433,0.00017808,2]
[408441652,1773633049134,-483.87433,0.00017808,2]
[408441653,1773633049144,-483.87433,0.00017808,2]
[408441654,1773633049155,-707.060282,0.00017808,2]
[408441655,1773633049164,-483.87433,0.00017808,2]
[408441656,1773633049173,-707.060282,0.00017808,2]
[408441657,1773633049182,-483.87433,0.00017808,2]
[408441658,1773633049191,-707.060282,0.00017808,2]
[408441659,1773633049200,-483.87433,0.00017808,2]
[408441660,1773633049209,-707.060282,0.00017808,2]
[408441661,1773633049218,-483.87433,0.00017808,2]
[408441662,1773633049227,-707.060282,0.00017808,2]
[408441663,1773633049236,-483.87433,0.00017808,2]
[408441664,1773633049245,-707.060282,0.00017808,2]
[408441665,1773633049254,-483.87433,0.00017808,2]
[408441666,1773633049263,-707.060282,0.00017808,2]
[408441667,1773633049272,-483.87433,0.00017808,2]
[408441668,1773633049281,-707.060282,0.00017808,2]
[408441669,1773633049290,-483.87433,0.00017808,2]
[408441670,1773633049299,-707.060282,0.00017808,2]
[408441671,1773633049308,-483.87433,0.00017808,2]
[408441672,1773633049317,-707.060282,0.00017808,2]
[408441673,1773633049326,-483.87433,0.00017808,2]
[408441674,1773633049335,-707.060282,0.00017808,2]
[408441675,1773633049344,-483.87433,0.00017808,2]
[408441676,1773633049353,-707.060282,0.00017808,2]
[408441677,1773633049362,-483.87433,0.00017808,2]
[408441678,1773633049371,-707.060282,0.00017808,2]
[408441679,1773633049380,-483.87433,0.00017808,2]
[408441680,1773633049389,-707.060282,0.00017808,2]
[408441681,1773633049398,-483.87433,0.00017808,2]
[408441682,1773633049407,-707.060282,0.00017808,2]
[408441683,1773633049416,-483.87433,0.00017808,2]
[408441684,1773633049425,-707.060282,0.00017808,2]
[408441685,1773633049434,-483.874329,0.00017808,2]
[408441686,1773633049444,-707.060282,0.00017808,2]
[408441687,1773633049453,-707.060282,0.00017808,2]
[408441688,1773633049465,-707.060282,0.00017808,2]
[408441689,1773633049474,-707.060288,0.00017808,2]
[408441690,1773633049483,-262.514305,0.00017808,2]
[408441691,1773633049492,-262.514305,0.00017808,2]
[408441692,1773633049502,-262.514305,0.00017808,2]
[408441693,1773633049511,-262.514305,0.00017808,2]
[408441694,1773633049522,-262.514305,0.00017808,2]
[408441695,1773633049531,-262.514305,0.00017808,2]
[408441696,1773633049539,-262.514305,0.00017808,2]
[408441697,1773633049548,-262.514305,0.00017808,2]
[408441698,1773633049557,-262.514305,0.00017808,2]
[408441699,1773633049567,-262.514305,0.00017808,2]
[408441700,1773633049577,-262.514305,0.00017808,2]
[408441701,1773633049586,-262.514305,0.00017808,2]
[408441702,1773633049595,-262.514305,0.00017808,2]
[408441703,1773633049604,-262.514305,0.00017808,2]
[408441704,1773633049614,-262.514305,0.00017808,2]
[408441705,1773633049623,-262.514305,0.00017808,2]
[408441706,1773633049632,-262.514305,0.00017808,2]
[408441707,1773633049642,-178.816056,0.00017808,2]
[408441708,1773633049651,-262.514305,0.00017808,2]
[408441709,1773633049661,-178.816056,0.00017808,2]
[408441710,1773633049670,-262.514305,0.00017808,2]
[408441711,1773633049679,-178.816056,0.00017808,2]
[408441712,1773633049688,-262.514301,0.00017808,2]
[408441713,1773633049698,-178.816056,0.00017808,2]
[408441714,1773633049709,-178.816056,0.00017808,2]
[408441715,1773633049718,-178.816056,0.00017808,2]
[408441716,1773633049727,-178.816056,0.00017808,2]
[408441717,1773633049737,-340.940114,0.00017808,2]
[408441718,1773633049745,-340.940114,0.00017808,2]
[408441719,1773633049756,-178.816056,0.00017808,2]
[408441720,1773633049767,-340.940114,0.00017808,2]
[408441721,1773633049779,-178.816056,0.00017808,2]
[408441722,1773633049789,-340.940114,0.00017808,2]
[408441723,1773633049799,-178.816056,0.00017808,2]
[408441724,1773633049808,-340.940114,0.00017808,2]
[408441725,1773633049818,-178.816056,0.00017808,2]
[408441726,1773633049829,-340.940114,0.00017808,2]